fUSD/lending_fUSD_20240702
["ID","MTS","AMOUNT","RATE_DAILY","PERIOD"]
[330865163,1719882643566,-500.0,0.00017842,2]
[330865164,1719882643575,-1494.77524589,0.00017925,2]
[330865165,1719882643584,-3207.71810411,0.0001799,2]
[330865166,1719882643594,-570.07973348,0.0001816,2]
[330865167,1719882643603,-11267.86732083,0.0001816,2]
[330865168,1719882643612,-170.55,0.00018376,2]
[330865169,1719882643622,-679.67,0.00018423,2]
[330865170,1719882643631,-1705.98,0.00018423,2]
[330865171,1719882643824,-936.56031906,0.00018536,2]
[330865172,1719882643835,-757.57837385,0.0001865,2]
[330865173,1719882643845,-540.19,0.00018849,30]
[330865174,1719882643854,-202.16984257,0.00018864,2]
[330865175,1719882643864,-500.0,0.00018938,2]
[330865176,1719882643874,-600.0,0.00018938,2]
[330865177,1719882643884,-31801.65800329,0.00019,2]
[330865178,1719882643895,-165.46569144,0.00019139,2]
[330865179,1719882643905,-360.95361939,0.00019177,2]
[330865180,1719882643915,-250.0,0.00019178,2]
[330865181,1719882643924,-270.0,0.00019178,2]
[330865182,1719882643935,-822.63,0.00019178,2]
[330865183,1719882643945,-1110.9929094,0.00019207,2]
[330865184,1719882643956,-570.07973348,0.0001922,2]
[330865185,1719882643966,-11267.86732083,0.0001922,2]
[330865186,1719882643976,-883.54,0.00019236,2]
[330865187,1719882643986,-10000.0,0.00019254,2]
[330865188,1719882643995,-936.56031906,0.00019309,2]
[330865189,1719882644004,-166.0,0.00019342,2]
[330865190,1719882644013,-618.0,0.00019342,2]
[330865191,1719882644022,-656.02,0.00019342,2]
[330865192,1719882644031,-5805.0,0.00019359,2]
[330865193,1719882644041,-3591.404,0.00019359,2]
[330865194,1719882644050,-9146.949,0.00019359,2]
[330865195,1719882644061,-344.0,0.00019359,2]
[330865196,1719882644071,-155.0,0.00019389,2]
[330865197,1719882644080,-171.3,0.00019477,2]
[330865198,1719882644089,-2500.0,0.000195,2]
[330865199,1719882644098,-165.46569144,0.00019731,2]
[330865200,1719882644107,-1435.82802612,0.0002,2]
[330865201,1719882644117,-900.0,0.0002,2]
[330865202,1719882644126,-3954.11623315,0.0002,2]
[330865203,1719882644136,-7187.71828881,0.0002,2]
[330865204,1719882644146,-646.12940436,0.0002,2]
[330865205,1719882644155,-5876.53240879,0.0002,2]
[330865206,1719882644164,-3512.4,0.0002,2]
[330865207,1719882644173,-256.70238179,0.0002,2]
[330865208,1719882644183,-448.06132112,0.0002,2]
[330865209,1719882644192,-1605.29438725,0.0002,7]
[330865210,1719882644201,-310.08129584,0.0002,3]
[330865211,1719882644211,-155.25696509,0.0002,2]
[330865212,1719882644220,-257.0,0.0002,2]
[330865213,1719882644234,-191.0,0.0002,2]
[330865214,1719882644243,-150.0,0.0002,2]
[330865215,1719882644252,-400.0,0.00020034,2]
[330865216,1719882644263,-936.56031906,0.00020082,2]
[330865217,1719882644273,-1915.0,0.000201,2]
[330865218,1719882644283,-570.07973348,0.0002028,2]
[330865219,1719882644292,-11267.86732083,0.0002028,2]
[330865220,1719882644301,-150.90846153,0.00020305,2]
[330865221,1719882644313,-150.0,0.00020413,2]
[330865222,1719882644323,-150.0,0.00020413,2]
[330865223,1719882644332,-259.228,0.00020413,2]
[330865224,1719882644342,-150.0,0.00020413,2]
[330865225,1719882644351,-356.0,0.00020413,2]
[330865226,1719882644361,-1820.0,0.00020413,2]
[330865227,1719882644371,-279.683,0.00020413,2]
[330865228,1719882644382,-448.0,0.00020413,2]
[330865229,1719882644391,-442.0,0.00020413,2]
[330865230,1719882644401,-815.03,0.00020547,3]
[330865231,1719882644411,-860.0,0.000206,3]
[330865232,1719882644422,-678.080233,0.00020763,2]
[330865233,1719882644431,-886.663468,0.00020763,2]
[330865234,1719882644440,-175.127575,0.00020763,2]
[330865235,1719882644449,-970.171074,0.00020763,2]
[330865236,1719882644459,-176.69104,0.00020763,2]
[330865237,1719882644468,-303.057085,0.00020763,2]
[330865238,1719882644478,-262.715102,0.00020763,2]
[330865239,1719882644487,-426.103976,0.00020763,2]
[330865240,1719882644497,-150.90846153,0.00020795,2]
[330865241,1719882644506,-2874.0,0.000208,3]
[330865242,1719882644516,-4024.1896175,0.000208,3]
[330865243,1719882644525,-815.03,0.00020821,5]
[330865244,1719882644534,-936.56031906,0.00020855,2]
[330865245,1719882644543,-1015.8064993,0.00020886,2]
[330865246,1719882644553,-205.26092676,0.00020889,2]
[330865247,1719882644564,-300.0,0.00020899,2]
[330865248,1719882644573,-296366.82496292,0.000209,7]
[330865249,1719882644583,-325445.610285,0.000209,3]
[330865250,1719882644592,-1250.0,0.00021,2]
[330865251,1719882644602,-225.19167095,0.00021,2]
[330865252,1719882644611,-678.080233,0.00021022,2]
[330865253,1719882644620,-886.663468,0.00021022,2]
[330865254,1719882644629,-970.171074,0.00021022,2]
[330865255,1719882644639,-303.057085,0.00021022,2]
[330865256,1719882644648,-262.715102,0.00021022,2]
[330865257,1719882644657,-426.103976,0.00021022,2]
[330865258,1719882644666,-815.03,0.00021095,7]
[330865259,1719882644675,-150.90846153,0.00021219,2]
[330865260,1719882644684,-824.54,0.00021233,2]
[330865261,1719882644693,-853.83,0.00021233,2]
[330865262,1719882644702,-853.83,0.00021233,2]
[330865263,1719882644711,-853.83,0.00021233,2]
[330865264,1719882644720,-678.080233,0.00021282,2]
[330865265,1719882644730,-886.663468,0.00021282,2]
[330865266,1719882644739,-970.171074,0.00021282,2]
[330865267,1719882644748,-303.057085,0.00021282,2]
[330865268,1719882644758,-262.715102,0.00021282,2]
[330865269,1719882644767,-426.103976,0.00021282,2]
[330865270,1719882644776,-570.07973348,0.0002134,2]
[330865271,1719882644786,-11267.86732083,0.0002134,2]
[330865272,1719882644795,-815.03,0.00021369,9]
[330865273,1719882644805,-623.41673485,0.00021468,2]
[330865274,1719882644814,-4279.14032286,0.00021468,15]
[330865275,1719882644823,-883.54,0.00021499,2]
[330865276,1719882644833,-150.38877795,0.00021507,2]
[330865277,1719882644842,-837.54,0.00021534,2]
[330865278,1719882644852,-1029.82,0.00021534,2]
[330865279,1719882644861,-678.080233,0.00021541,2]
[330865280,1719882644870,-886.663468,0.00021541,2]
[330865281,1719882644880,-970.171074,0.00021541,2]
[330865282,1719882644890,-303.057085,0.00021541,2]
[330865283,1719882644901,-262.715102,0.00021541,2]
[330865284,1719882644913,-426.103976,0.00021541,2]
[330865285,1719882644923,-3310.14641285,0.000216,2]
[330865286,1719882644933,-150.38877795,0.00021616,2]
[330865287,1719882644942,-936.56031906,0.00021627,2]
[330865288,1719882644952,-815.03,0.00021643,11]
[330865289,1719882644961,-456.59,0.00021644,2]
[330865290,1719882644970,-395.02,0.00021644,2]
[330865291,1719882644980,-165.71,0.00021644,2]
[330865292,1719882644990,-150.38877795,0.00021726,2]
[330865293,1719882644999,-892.0,0.000218,2]
[330865294,1719882645008,-678.080233,0.00021801,2]
[330865295,1719882645017,-886.663468,0.00021801,2]
[330865296,1719882645026,-970.171074,0.00021801,2]
[330865297,1719882645036,-303.057085,0.00021801,2]
[330865298,1719882645045,-262.715102,0.00021801,2]
[330865299,1719882645055,-426.103976,0.00021801,2]
[330865300,1719882645064,-150.38877795,0.00021836,2]
[330865301,1719882645074,-150.98,0.00021846,2]
[330865302,1719882645083,-1011.0,0.000219,9]
[330865303,1719882645094,-815.03,0.00021917,13]
[330865304,1719882645105,-150.38877795,0.00021918,5]
[330865305,1719882645116,-304.47,0.00021918,2]
[330865306,1719882645126,-178.63,0.00021918,2]
[330865307,1719882645136,-151.0,0.00021918,2]
[330865308,1719882645146,-151.0,0.00021918,2]
[330865309,1719882645156,-151.0,0.00021918,2]
[330865310,1719882645167,-206.546188,0.00021918,2]
[330865311,1719882645176,-1500.0,0.00021987,2]
[330865312,1719882645185,-257.97611208,0.00022,2]
[330865313,1719882645194,-4126.34517571,0.00022,30]
[330865314,1719882645204,-20000.0,0.00022,2]
[330865315,1719882645214,-150.38877795,0.00022027,5]
[330865316,1719882645228,-150.90846153,0.00022057,2]
[330865317,1719882645240,-2000.0,0.00022098,2]
[330865318,1719882645250,-200.0,0.00022098,2]
[330865319,1719882645260,-1000.0,0.000221,2]
[330865320,1719882645271,-150.38877795,0.00022137,5]
[330865321,1719882645280,-300.0,0.00022146,2]
[330865322,1719882645291,-328.03848419,0.00022191,120]
[330865323,1719882645301,-815.03,0.00022191,15]
[330865324,1719882645312,-300.0,0.00022199,2]
[330865325,1719882645321,-32743.96222008,0.000222,2]
[330865326,1719882645330,-50050.0,0.000222,2]
[330865327,1719882645340,-2500.0,0.000222,2]
[330865328,1719882645349,-2251.0,0.000222,2]
[330865329,1719882645359,-500.0,0.0002222,2]
[330865330,1719882645368,-200.0,0.0002222,2]
[330865331,1719882645377,-500.0,0.00022221,2]
[330865332,1719882645386,-500.0,0.00022221,2]
[330865333,1719882645396,-200.0,0.00022221,2]
[330865335,1719882645407,-150.38877795,0.00022247,5]
[330865336,1719882645417,-150.0,0.00022298,120]
[330865337,1719882645427,-618.0,0.00022342,2]
[330865338,1719882645436,-150.38877795,0.00022356,5]
[330865339,1719882645446,-150.0,0.0002239,120]
[330865340,1719882645456,-300.0,0.00022392,2]
[330865341,1719882645465,-24440.6411838,0.00022393,2]
[330865342,1719882645473,-491.0,0.000224,5]
[330865343,1719882645483,-191.0,0.000224,5]
[330865345,1719882645492,-936.56031906,0.000224,2]
[330865346,1719882645501,-1011.0,0.000224,10]
[330865347,1719882645510,-570.07973348,0.000224,2]
[330865348,1719882645521,-11267.86732083,0.000224,2]
[330865349,1719882645529,-757.57837385,0.000224,2]
[330865350,1719882645539,-2282.00834732,0.00022429,2]
[330865351,1719882645548,-5100.0,0.0002244,2]
[330865352,1719882645557,-5100.0,0.0002244,3]
[330865353,1719882645566,-5100.0,0.0002244,5]
[330865354,1719882645575,-204.118585,0.00022444,2]
[330865355,1719882645584,-204.615136,0.00022444,2]
[330865356,1719882645593,-204.118583,0.00022444,2]
[330865357,1719882645603,-204.615136,0.00022444,2]
[330865358,1719882645613,-204.615136,0.00022444,2]
[330865359,1719882645623,-204.118583,0.00022444,2]
[330865360,1719882645632,-163.692109,0.00022444,2]
[330865361,1719882645641,-163.294867,0.00022444,2]
[330865362,1719882645651,-157.070208,0.00022448,2]
[330865363,1719882645660,-157.070208,0.00022448,2]
[330865364,1719882645669,-157.070208,0.00022448,2]
[330865365,1719882645678,-157.070208,0.00022448,2]
[330865366,1719882645687,-157.07021,0.00022448,2]
[330865367,1719882645697,-157.07021,0.00022448,2]
[330865368,1719882645707,-157.07021,0.00022448,2]
[330865369,1719882645716,-157.070208,0.00022448,2]
[330865370,1719882645725,-167.070208,0.00022448,2]
[330865371,1719882645735,-23308.2896382,0.0002245,2]
[330865372,1719882645746,-22175.9380927,0.0002245,2]
[330865373,1719882645756,-500.0,0.00022465,4]
[330865374,1719882645767,-500.0,0.00022465,4]
[330865375,1719882645776,-815.03,0.00022465,17]
[330865376,1719882645786,-325.16500787,0.00022465,4]
[330865377,1719882645795,-1501.95,0.00022465,4]
[330865378,1719882645805,-1501.95,0.00022465,4]
[330865379,1719882645814,-1501.95,0.00022465,4]
[330865380,1719882645824,-1501.95,0.00022465,4]
[330865381,1719882645833,-1501.95,0.00022465,4]
[330865382,1719882645843,-1501.95,0.00022465,4]
[330865383,1719882645853,-1501.95,0.00022465,4]
[330865384,1719882645862,-1501.95,0.00022465,4]
[330865385,1719882645871,-1501.95,0.00022465,4]
[330865386,1719882645881,-1501.95,0.00022465,4]
[330865387,1719882645890,-1501.95,0.00022465,4]
[330865388,1719882645899,-453.22337172,0.00022465,4]
[330865389,1719882645908,-560.67348891,0.00022465,4]
[330865390,1719882645917,-500.0,0.00022465,4]
[330865391,1719882645927,-500.0,0.00022465,4]
[330865392,1719882645936,-500.0,0.00022465,4]
[330865393,1719882645947,-487.38087458,0.00022465,4]
[330865394,1719882645956,-500.0,0.00022465,4]
[330865395,1719882645965,-500.0,0.00022465,4]
[330865396,1719882645975,-500.0,0.00022465,4]
[330865397,1719882645984,-500.0,0.00022465,4]
[330865398,1719882645992,-702.2,0.00022465,4]
[330865399,1719882646002,-500.0,0.00022465,4]
[330865400,1719882646011,-702.2,0.00022465,4]
[330865401,1719882646020,-500.0,0.00022465,4]
[330865402,1719882646029,-702.2,0.00022465,4]
[330865403,1719882646038,-500.0,0.00022465,4]
[330865404,1719882646048,-702.2,0.00022465,4]
[330865405,1719882646057,-500.0,0.00022465,4]
[330865406,1719882646067,-702.2,0.00022465,4]
[330865407,1719882646076,-500.0,0.00022465,4]
[330865408,1719882646086,-702.2,0.00022465,4]
[330865409,1719882646095,-500.0,0.00022465,4]
[330865410,1719882646104,-702.2,0.00022465,4]
[330865411,1719882646114,-500.0,0.00022465,4]
[330865412,1719882646123,-702.2,0.00022465,4]
[330865413,1719882646134,-702.2,0.00022465,4]
[330865414,1719882646146,-702.2,0.00022465,4]
[330865415,1719882646157,-702.2,0.00022465,4]
[330865416,1719882646169,-338.07,0.00022465,4]
[330865417,1719882646182,-763.69,0.00022465,4]
[330865418,1719882646193,-763.69,0.00022465,4]
[330865419,1719882646204,-763.69,0.00022465,4]
[330865420,1719882646216,-763.69,0.00022465,4]
[330865421,1719882646231,-763.69,0.00022465,4]
[330865422,1719882646244,-763.69,0.00022465,4]
[330865423,1719882646254,-763.69,0.00022465,4]
[330865424,1719882646263,-763.69,0.00022465,4]
[330865425,1719882646275,-763.69,0.00022465,4]
[330865426,1719882646286,-763.69,0.00022465,4]
[330865427,1719882646298,-763.69,0.00022465,4]
[330865428,1719882646311,-150.38877795,0.00022466,5]
[330865429,1719882646321,-21043.5865471,0.0002247,2]
[330865430,1719882646335,-19911.2350015,0.0002247,2]
[330865431,1719882646346,-18778.883456,0.0002247,2]
[330865432,1719882646358,-2268.9815067,0.00022485,2]
[330865433,1719882646370,-2158.750994,0.00022485,2]
[330865434,1719882646381,-2048.5204813,0.00022485,2]
[330865435,1719882646392,-1938.2899687,0.00022485,2]
[330865436,1719882646404,-1828.059456,0.00022485,2]
[330865437,1719882646415,-500.0,0.00022498,4]
[330865438,1719882646426,-1424.44476162,0.00022499,10]
[330865439,1719882646438,-1501.95,0.00022499,4]
[330865440,1719882646449,-1501.95,0.00022499,4]
[330865441,1719882646461,-1501.95,0.00022499,4]
[330865442,1719882646472,-1501.95,0.00022499,4]
[330865443,1719882646485,-1501.95,0.00022499,4]
[330865444,1719882646496,-1501.95,0.00022499,4]
[330865445,1719882646508,-1501.95,0.00022499,4]
[330865446,1719882646520,-1501.95,0.00022499,4]
[330865447,1719882646532,-1501.95,0.00022499,4]
[330865448,1719882646541,-1501.95,0.00022499,4]
[330865449,1719882646555,-1501.95,0.00022499,4]
[330865450,1719882646566,-1501.95,0.00022499,4]
[330865451,1719882646576,-1502.14607426,0.00022499,4]
[330865452,1719882646587,-151.0,0.00022499,2]
[330865453,1719882646598,-300.89508881,0.00022499,4]
[330865454,1719882646610,-702.2,0.00022499,4]
[330865455,1719882646621,-702.2,0.00022499,4]
[330865456,1719882646631,-702.2,0.00022499,4]
[330865457,1719882646643,-702.2,0.00022499,4]
[330865458,1719882646654,-702.2,0.00022499,4]
[330865459,1719882646664,-702.2,0.00022499,4]
[330865460,1719882646675,-702.2,0.00022499,4]
[330865461,1719882646685,-702.2,0.00022499,4]
[330865462,1719882646694,-702.2,0.00022499,4]
[330865463,1719882646704,-702.2,0.00022499,4]
[330865464,1719882646714,-702.2,0.00022499,4]
[330865465,1719882646723,-702.2,0.00022499,4]
[330865466,1719882646734,-702.27310618,0.00022499,4]
[330865467,1719882646746,-763.69,0.00022499,4]
[330865468,1719882646757,-763.69,0.00022499,4]
[330865469,1719882646767,-763.69,0.00022499,4]
[330865470,1719882646778,-763.69,0.00022499,4]
[330865471,1719882646789,-763.69,0.00022499,4]
[330865472,1719882646801,-763.69,0.00022499,4]
[330865473,1719882646812,-763.69,0.00022499,4]
[330865474,1719882646822,-763.69,0.00022499,4]
[330865475,1719882646834,-763.69,0.00022499,4]
[330865476,1719882646844,-763.69,0.00022499,4]
[330865477,1719882646854,-763.69,0.00022499,4]
[330865478,1719882646866,-763.69,0.00022499,4]
[330865479,1719882646877,-763.88245825,0.00022499,4]
[330865480,1719882646889,-207.56930117,0.000225,5]
[330865481,1719882646901,-413910.77340572,0.000225,120]
[330865482,1719882647125,-307782.97250004,0.000225,120]
[330865483,1719882647138,-13340.72861284,0.000225,120]
[330865484,1719882647265,-0.01601706,0.00012597,2]
[330865485,1719882647278,-181.92051494,0.00012597,2]
[330865486,1719882647290,-181.936532,0.00012877,2]
[330865487,1719882647302,-181.936532,0.00012877,2]
[330865488,1719882647315,-181.936532,0.00012955,2]
[330865489,1719882647325,-155.08915482,0.00013128,2]
[330865490,1719882647335,-959.7061901,0.000225,120]
[330865491,1719882647348,-1000.89019949,0.000225,120]
[330865492,1719882647360,-442.85878953,0.000225,120]
[330865493,1719882647460,-181.936532,0.00012597,2]
[330865494,1719882647471,-122.40754089,0.00013096,2]
[330865495,1719882647487,-59.52899111,0.00013096,2]
[330865496,1719882647499,-181.936532,0.00013128,2]
[330865497,1719882647510,-181.936532,0.00013128,2]
[330865498,1719882647521,-87.65526533,0.00013181,2]
[330865499,1719882647534,-94.28126667,0.00013181,2]
[330865500,1719882647544,-181.936532,0.00013472,2]
[330865501,1719882647554,-95.77041743,0.00013472,2]
[330865502,1719882647568,-86.16611457,0.00013472,2]
[330865503,1719882647578,-200.98736529,0.000225,120]
[330865504,1719882702915,328.03848419,0.00022,120]
[330865506,1719883197892,1264.45674502,0.00011199,2]
[330865507,1719883204310,1902.84188033,0.00011199,2]
[330865508,1719883278230,7588.81671987,0.00011199,2]
[330865509,1719883493633,1494.77524589,0.00011199,2]
[330865510,1719883527904,490.65888006,0.00011199,2]
[330865511,1719883593147,266.23614765,0.00011199,2]
[330865512,1719883626087,364.844001,0.00011199,2]
[330865513,1719883647318,163.77694291,0.00011199,2]
[330865514,1719883650360,264.53806509,0.00011199,2]
[330865515,1719883659914,418.98646016,0.00011199,2]
[330865516,1719883660961,217.90047204,0.00011199,2]
[330865517,1719883661971,366.50798641,0.00011199,2]
[330865518,1719883664049,721.13355806,0.00011199,2]
[330865519,1719883677775,2200.02980555,0.00011199,2]
[330865520,1719883679088,530.30858077,0.00011199,2]
[330865521,1719883684914,295.73291685,0.00011199,2]
[330865522,1719883686527,155.0,0.00011199,2]
[330865523,1719883695385,346.40487547,0.00011199,2]
[330865524,1719883701912,308.19482801,0.00011199,2]
[330865525,1719883703893,438.44980414,0.00011199,2]
[330865526,1719883711330,227.0716558,0.00011199,2]
[330865527,1719883738442,25252.47881745,0.00011199,2]
[330865528,1719883803524,1000.0,0.000209,90]
[330865557,1719883832150,-500.0,0.00012102,2]
[330865558,1719883832162,-3255.15722207,0.00012102,2]
[330865559,1719883832171,-160.53554969,0.00012202,2]
[330865560,1719883832180,-202.49463357,0.00012273,2]
[330865562,1719883832189,-159.17868076,0.00012273,2]
[330865564,1719883832199,-155.0,0.00012302,2]
[330865566,1719883832208,-196.28606879,0.00012302,2]
[330865568,1719883832218,-155.0,0.00012302,2]
[330865570,1719883832227,-155.0,0.00012314,2]
[330865572,1719883832236,-1172.985941,0.00012613,2]
[330865573,1719883832245,-391.8428,0.00012855,2]
[330865574,1719883832255,-150.99,0.00013128,2]
[330865575,1719883832264,-300.0,0.00013259,2]
[330865576,1719883832274,-1593.07332165,0.0001326,2]
[330865577,1719883832285,-4869.87206032,0.0001326,2]
[330865578,1719883832296,-280.83854349,0.0001326,2]
[330865579,1719883832311,-746.56164777,0.0001326,2]
[330865580,1719883832323,-830.08689098,0.0001326,2]
[330865581,1719883832336,-374.7068039,0.0001326,2]
[330865582,1719883832351,-1256.0721124,0.0001326,2]
[330865583,1719883832364,-440.82989259,0.0001326,2]
[330865584,1719883832374,-499.99,0.00013269,2]
[330865585,1719883832384,-258.42,0.00013269,2]
[330865586,1719883832394,-4602.22374684,0.00013269,2]
[330865587,1719883832452,-996.44625316,0.00013269,2]
[330865588,1719883832462,-328.625,0.0001327,2]
[330865589,1719883832472,-194.54116412,0.0001327,2]
[330865590,1719883832484,-535.511,0.0001327,2]
[330865591,1719883832496,-479.84771151,0.0001327,2]
[330865592,1719883832508,-1679.87422437,0.0001327,2]
[330865593,1719883832519,-2509.5105,0.0001327,2]
[330865594,1719883832529,-54.4593464,0.0001327,2]
[330865595,1719883832540,-1529.20511821,0.0001327,2]
[330865596,1719883832552,-620.19845021,0.0001327,2]
[330865597,1719883832564,-696.80014816,0.0001327,2]
[330865598,1719883832579,-1506.46693702,0.0001327,2]
[330865599,1719883832588,-499.99,0.0001327,2]
[330865600,1719883832597,-138.00031166,0.00013472,2]
[330865601,1719883832608,-12.98968834,0.00013472,2]
[330865602,1719883832617,-1066.83929044,0.00013472,2]
[330865603,1719883832629,-478.59396333,0.00013472,2]
[330865604,1719883832641,-1556.34674623,0.00013472,2]
[330865605,1719883832650,-284.77,0.00013472,2]
[330865606,1719883832659,-264.53806509,0.00013516,2]
[330865607,1719883832669,-366.50798641,0.00013516,2]
[330865608,1719883832678,-721.13355806,0.00013516,2]
[330865609,1719883832687,-163.48728862,0.00013543,2]
[330865610,1719883832696,-346.40487547,0.00013543,2]
[330865611,1719883832705,-437.33110998,0.00013543,2]
[330865612,1719883832714,-530.30858077,0.00013543,2]
[330865613,1719883832723,-308.22585228,0.00013543,2]
[330865614,1719883832732,-341.58755134,0.00013574,2]
[330865615,1719883832741,-1251.45250338,0.00013574,2]
[330865616,1719883832750,-1506.48984501,0.00013574,2]
[330865617,1719883838075,-155.0,0.00012302,2]
[330865618,1719883838085,-588.30273632,0.00013574,2]
[330865619,1719883838095,-155.17882879,0.00013574,2]
[330865620,1719883838104,-155.23120073,0.00013574,10]
[330865621,1719883838115,-310.0,0.00014585,2]
[330865622,1719883838124,-693.84,0.00015091,2]
[330865623,1719883838135,-248.11011873,0.00015102,2]
[330865624,1719883838145,-500.0,0.00015102,2]
[330865625,1719883838155,-500.0,0.00015102,2]
[330865626,1719883838165,-500.0,0.00015102,2]
[330865627,1719883838175,-160.53554969,0.00015476,2]
[330865629,1719883838397,-25102.0,0.0001641,2]
[330865631,1719883838407,-935.85,0.00016478,2]
[330865633,1719883838418,-152.42,0.00016533,2]
[330865635,1719883838429,-200.0,0.0001655,2]
[330865637,1719883838439,-170.86,0.00016571,2]
[330865638,1719883838449,-174.16,0.00016571,2]
[330865639,1719883838459,-152.42,0.00016581,2]
[330865640,1719883838469,-1235.15,0.0001659,2]
[330865641,1719883838479,-15552.67,0.00016604,2]
[330865642,1719883838489,-152.42,0.00016629,2]
[330865643,1719883838500,-500.0,0.00016668,2]
[330865644,1719883838510,-152.42,0.00016677,2]
[330865645,1719883838521,-468.14,0.00016682,2]
[330865646,1719883838532,-3519.0,0.000167,5]
[330865647,1719883838542,-152.42,0.00016725,2]
[330865648,1719883838551,-530.04526646,0.00016746,2]
[330865649,1719883838562,-519.80912686,0.00016746,2]
[330865650,1719883838572,-152.42,0.00016773,2]
[330865651,1719883838582,-152.42,0.00016821,2]
[330865652,1719883838592,-1718.27,0.00016841,2]
[330865653,1719883838601,-2751.0,0.00016841,2]
[330865654,1719883838611,-152.42,0.00016868,2]
[330865655,1719883838621,-152.42,0.00016916,2]
[330865656,1719883838631,-152.42,0.00016964,2]
[330865657,1719883838640,-10000.0,0.00016996,2]
[330865658,1719883838650,-152.42,0.00017012,2]
[330865659,1719883838660,-152.42,0.0001706,2]
[330865660,1719883838670,-250.0,0.00017066,2]
[330865661,1719883838680,-188.58,0.00017066,2]
[330865662,1719883838690,-1000.0,0.00017105,2]
[330865663,1719883838700,-152.42,0.00017108,2]
[330865664,1719883838710,-152.42,0.00017156,2]
[330865665,1719883838720,-152.42,0.00017203,2]
[330865666,1719883838729,-152.42,0.00017251,2]
[330865667,1719883838739,-152.42,0.00017299,2]
[330865668,1719883838749,-152.42,0.00017347,2]
[330865669,1719883838759,-693.84,0.00017355,2]
[330865670,1719883838772,-152.42,0.00017395,2]
[330865671,1719883838790,-4458.61712229,0.00017444,2]
[330865672,1719883838800,-682.01,0.00017524,3]
[330865673,1719883838811,-5278.83908231,0.00017533,2]
[330865674,1719883838821,-3073.2177715,0.00017889,2]
[330865675,1719883838832,-5599.39578005,0.00017889,2]
[330865676,1719883838841,-171.02392008,0.00017975,2]
[330865677,1719883838851,-167.74,0.00018194,2]
[330865678,1719883838860,-171.02392005,0.00018467,2]
[330865679,1719883838870,-160.53554969,0.00018749,2]
[330865680,1719883838880,-495.17,0.00018849,30]
[330865681,1719883838890,-1364.02,0.00018894,3]
[330865682,1719883838900,-660.95341684,0.00018899,2]
[330865683,1719883838910,-158.59696677,0.00018919,2]
[330865684,1719883838919,-171.02392005,0.00018958,2]
[330865685,1719883838929,-1292.62878131,0.00018999,2]
[330865686,1719883838940,-681.94130357,0.00019,2]
[330865687,1719883838950,-244.5243077,0.00019077,2]
[330865688,1719883838960,-250.0,0.00019178,2]
[330865689,1719883838970,-155.0,0.00019229,2]
[330865690,1719883838980,-1000.0,0.00019243,2]
[330865691,1719883838990,-511.55,0.00019289,3]
[330865692,1719883839000,-155.20938735,0.00019299,2]
[330865693,1719883839010,-170.5,0.00019344,3]
[330865694,1719883839021,-163.98515363,0.0001935,2]
[330865695,1719883839031,-341.0,0.00019379,3]
[330865696,1719883839042,-1260.66099908,0.00019389,2]
[330865697,1719883839053,-235.27505482,0.00019389,2]
[330865698,1719883839063,-10000.0,0.0001939,2]
[330865699,1719883839074,-171.02392005,0.0001945,2]
[330865700,1719883839085,-1000.0,0.00019465,2]
[330865701,1719883839095,-256.043836,0.00019548,2]
[330865702,1719883839106,-693.84,0.00019618,2]
[330865703,1719883839117,-174.16,0.00019885,2]
[330865704,1719883839128,-171.02392005,0.00019942,2]